fUST/lending_fUST_20250305
["ID","MTS","AMOUNT","RATE_DAILY","PERIOD"]
[355427293,1741133463675,-241.45610026,0.00045479,120]
[355427294,1741133463685,-500.0,0.00045479,120]
[355427295,1741133463695,-8421.25,0.00045479,120]
[355427296,1741133463705,-500.0,0.00045479,120]
[355427297,1741133463714,-1416.82,0.00045479,120]
[355427298,1741133463723,-500.0,0.00045479,120]
[355427299,1741133463733,-500.0,0.00045479,120]
[355427300,1741133463743,-5881.15,0.00045479,120]
[355427301,1741133463753,-500.0,0.00045479,120]
[355427302,1741133463763,-444.59622038,0.00045479,120]
[355427303,1741133463772,-500.0,0.00045479,120]
[355427304,1741133463782,-500.0,0.00045479,120]
[355427305,1741133463792,-714.59,0.00045479,120]
[355427306,1741133463802,-500.0,0.00045479,120]
[355427307,1741133463813,-958.42,0.00045479,120]
[355427308,1741133463823,-500.0,0.00045479,120]
[355427309,1741133463835,-550.4,0.00045479,120]
[355427310,1741133463845,-500.0,0.00045479,120]
[355427311,1741133463855,-1163.96,0.00045479,120]
[355427312,1741133463865,-500.0,0.00045479,120]
[355427313,1741133463875,-786.36,0.00045479,120]
[355427314,1741133463887,-500.0,0.00045479,120]
[355427315,1741133463898,-508.29,0.00045479,120]
[355427316,1741133463909,-500.0,0.00045479,120]
[355427317,1741133463919,-590.28,0.00045479,120]
[355427318,1741133463929,-508.41709694,0.00045501,99]
[355427319,1741133463938,-200.0,0.00045521,10]
[355427320,1741133463949,-1000.0,0.00045573,10]
[355427321,1741133463959,-508.41709694,0.00045601,97]
[355427322,1741133463969,-309.7111964,0.00045699,30]
[355427323,1741133463979,-155.0403253,0.00045699,30]
[355427324,1741133463989,-155.0403253,0.00045699,30]
[355427325,1741133463999,-155.0403253,0.00045699,30]
[355427326,1741133464008,-155.066508,0.00045699,30]
[355427327,1741133464018,-155.066508,0.00045699,30]
[355427328,1741133464028,-155.0403253,0.00045699,30]
[355427329,1741133464038,-155.066508,0.00045699,30]
[355427330,1741133464049,-155.0403253,0.00045699,30]
[355427331,1741133464059,-155.0403253,0.00045699,30]
[355427332,1741133464069,-155.0403253,0.00045699,30]
[355427333,1741133464078,-155.0403253,0.00045699,30]
[355427334,1741133464088,-155.0403253,0.00045699,30]
[355427335,1741133464098,-459.14,0.000457,30]
[355427336,1741133464108,-508.41709694,0.00045701,94]
[355427337,1741133464118,-508.41709694,0.00045801,100]
[355427338,1741133464128,-1000.0,0.00045847,10]
[355427339,1741133464139,-2200.0,0.00045888,14]
[355427340,1741133464149,-686.383,0.00045888,30]
[355427341,1741133464159,-508.41709694,0.00045901,100]
[355427342,1741133464170,-1000.0,0.00046,120]
[355427343,1741133464180,-154.44,0.00046,39]
[355427344,1741133464190,-154.44,0.00046,39]
[355427345,1741133464199,-508.41709694,0.00046001,94]
[355427346,1741133464209,-160.0,0.00046015,3]
[355427347,1741133464219,-250.0,0.00046016,3]
[355427348,1741133464229,-250.0,0.00046021,2]
[355427349,1741133464239,-500.0,0.00046027,120]
[355427350,1741133464248,-500.0,0.00046027,120]
[355427351,1741133464258,-512.01765553,0.00046027,120]
[355427352,1741133464268,-630.41906617,0.00046027,120]
[355427353,1741133464280,-516.49983586,0.00046027,120]
[355427354,1741133464290,-642.72,0.00046027,120]
[355427355,1741133464300,-531.95,0.00046027,120]
[355427356,1741133464313,-500.0,0.00046027,120]
[355427357,1741133464323,-500.0,0.00046027,120]
[355427358,1741133464333,-500.0,0.00046027,120]
[355427359,1741133464343,-500.0,0.00046027,120]
[355427360,1741133464353,-500.0,0.00046027,120]
[355427361,1741133464363,-500.0,0.00046027,120]
[355427362,1741133464373,-500.0,0.00046027,120]
[355427363,1741133464383,-500.0,0.00046027,120]
[355427364,1741133464394,-500.0,0.00046027,120]
[355427365,1741133464404,-500.0,0.00046027,120]
[355427366,1741133464414,-500.0,0.00046027,120]
[355427367,1741133464423,-500.0,0.00046027,120]
[355427368,1741133464431,-162.01613741,0.00046027,120]
[355427369,1741133464441,-500.0,0.00046027,120]
[355427370,1741133464451,-500.0,0.00046027,120]
[355427371,1741133464461,-500.0,0.00046027,120]
[355427372,1741133464473,-500.0,0.00046027,120]
[355427373,1741133464483,-507.86991258,0.00046027,120]
[355427374,1741133464493,-500.0,0.00046027,120]
[355427375,1741133464503,-500.0,0.00046027,120]
[355427376,1741133464513,-893.83,0.00046027,120]
[355427377,1741133464523,-521.43,0.00046027,120]
[355427378,1741133464533,-500.0,0.00046027,120]
[355427379,1741133464543,-500.0,0.00046027,120]
[355427380,1741133464553,-500.0,0.00046027,120]
[355427381,1741133464563,-611.26,0.00046027,120]
[355427382,1741133464573,-500.0,0.00046027,120]
[355427383,1741133464583,-625.34,0.00046027,120]
[355427384,1741133464592,-520.47124111,0.00046027,120]
[355427385,1741133464602,-500.0,0.00046027,120]
[355427386,1741133464613,-500.0,0.00046027,120]
[355427387,1741133464623,-500.0,0.00046027,120]
[355427388,1741133464634,-500.0,0.00046027,120]
[355427389,1741133464644,-500.0,0.00046027,120]
[355427390,1741133464655,-510.81,0.00046027,120]
[355427391,1741133464665,-500.0,0.00046027,120]
[355427392,1741133464674,-500.0,0.00046027,120]
[355427393,1741133464685,-500.0,0.00046027,120]
[355427394,1741133464695,-578.83,0.00046027,120]
[355427395,1741133464705,-584.35,0.00046027,120]
[355427396,1741133464715,-500.0,0.00046027,120]
[355427397,1741133464725,-500.0,0.00046027,120]
[355427398,1741133464736,-500.0,0.00046027,120]
[355427399,1741133464746,-553.69,0.00046027,120]
[355427400,1741133464756,-770.71,0.00046027,120]
[355427401,1741133464768,-500.0,0.00046027,120]
[355427402,1741133464779,-500.0,0.00046027,120]
[355427403,1741133464789,-572.13,0.00046027,120]
[355427404,1741133464798,-510.56424638,0.00046027,120]
[355427405,1741133464808,-500.0,0.00046027,120]
[355427406,1741133464818,-500.0,0.00046027,120]
[355427407,1741133464827,-761.67,0.00046027,120]
[355427408,1741133464837,-500.0,0.00046027,120]
[355427409,1741133464846,-500.0,0.00046027,120]
[355427410,1741133464855,-500.0,0.00046027,120]
[355427411,1741133464865,-364.13700856,0.00046027,120]
[355427412,1741133464876,-500.0,0.00046027,120]
[355427413,1741133464887,-500.0,0.00046027,120]
[355427414,1741133464896,-596.19,0.00046027,120]
[355427415,1741133464906,-500.0,0.00046027,120]
[355427416,1741133464915,-500.0,0.00046027,120]
[355427417,1741133464924,-588.58,0.00046027,120]
[355427418,1741133464934,-500.0,0.00046027,120]
[355427419,1741133464943,-500.0,0.00046027,120]
[355427420,1741133464953,-535.69951548,0.00046027,120]
[355427421,1741133464963,-1526.98,0.00046027,120]
[355427422,1741133464972,-500.0,0.00046027,120]
[355427423,1741133464984,-500.0,0.00046027,120]
[355427424,1741133464994,-510.50712443,0.00046027,120]
[355427425,1741133465005,-500.0,0.00046027,120]
[355427426,1741133465014,-500.0,0.00046027,120]
[355427427,1741133465024,-749.9,0.00046027,120]
[355427428,1741133465034,-721.77,0.00046027,120]
[355427429,1741133465043,-500.0,0.00046027,120]
[355427430,1741133465053,-500.0,0.00046027,120]
[355427431,1741133465063,-500.0,0.00046027,120]
[355427432,1741133465072,-500.0,0.00046027,120]
[355427433,1741133465082,-500.0,0.00046027,120]
[355427434,1741133465091,-694.81,0.00046027,120]
[355427435,1741133465104,-590.42,0.00046027,120]
[355427436,1741133465115,-500.0,0.00046027,120]
[355427437,1741133465126,-334.81464229,0.00046027,120]
[355427438,1741133465139,-500.0,0.00046027,120]
[355427439,1741133465149,-500.0,0.00046027,120]
[355427440,1741133465159,-500.0,0.00046027,120]
[355427441,1741133465170,-500.0,0.00046027,120]
[355427442,1741133465180,-522.25,0.00046027,120]
[355427443,1741133465189,-507.17336182,0.00046027,120]
[355427444,1741133465198,-500.0,0.00046027,120]
[355427445,1741133465208,-500.0,0.00046027,120]
[355427446,1741133465218,-500.0,0.00046027,120]
[355427447,1741133465228,-500.0,0.00046027,120]
[355427448,1741133465238,-500.0,0.00046027,120]
[355427449,1741133465248,-500.0,0.00046027,120]
[355427450,1741133465257,-727.24,0.00046027,120]
[355427451,1741133465271,-518.23391181,0.00046027,120]
[355427452,1741133465281,-1271.12,0.00046027,120]
[355427453,1741133465291,-500.0,0.00046027,120]
[355427454,1741133465301,-500.0,0.00046027,120]
[355427455,1741133465311,-500.0,0.00046027,120]
[355427456,1741133465321,-500.0,0.00046027,120]
[355427457,1741133465331,-500.0,0.00046027,120]
[355427458,1741133465341,-500.0,0.00046027,120]
[355427459,1741133465353,-500.0,0.00046027,120]
[355427460,1741133465363,-500.0,0.00046027,120]
[355427461,1741133465372,-500.0,0.00046027,120]
[355427462,1741133465382,-500.0,0.00046027,120]
[355427463,1741133465484,-500.0,0.00046027,120]
[355427464,1741133465505,-500.0,0.00046027,120]
[355427465,1741133465519,-500.0,0.00046027,120]
[355427466,1741133465529,-500.0,0.00046027,120]
[355427467,1741133465538,-500.0,0.00046027,120]
[355427468,1741133465548,-500.0,0.00046027,120]
[355427469,1741133465558,-511.95,0.00046027,120]
[355427470,1741133465567,-500.0,0.00046027,120]
[355427471,1741133465577,-500.0,0.00046027,120]
[355427472,1741133465587,-500.0,0.00046027,120]
[355427473,1741133465597,-897.6,0.00046027,120]
[355427474,1741133465609,-740.77,0.00046027,120]
[355427475,1741133465619,-656.86,0.00046027,120]
[355427476,1741133465629,-818.65,0.00046027,120]
[355427477,1741133465639,-500.0,0.00046027,120]
[355427478,1741133465650,-500.0,0.00046027,120]
[355427479,1741133465660,-500.0,0.00046027,120]
[355427480,1741133465671,-500.0,0.00046027,120]
[355427481,1741133465681,-500.0,0.00046027,120]
[355427482,1741133465691,-500.0,0.00046027,120]
[355427483,1741133465701,-500.0,0.00046027,120]
[355427484,1741133465711,-500.0,0.00046027,120]
[355427485,1741133465721,-578.89,0.00046027,120]
[355427486,1741133465733,-500.0,0.00046027,120]
[355427487,1741133465742,-500.0,0.00046027,120]
[355427488,1741133465752,-612.38886208,0.00046027,120]
[355427489,1741133465761,-500.0,0.00046027,120]
[355427490,1741133465772,-500.0,0.00046027,120]
[355427491,1741133465782,-500.0,0.00046027,120]
[355427492,1741133465792,-500.0,0.00046027,120]
[355427493,1741133465802,-500.0,0.00046027,120]
[355427494,1741133465812,-500.0,0.00046027,120]
[355427495,1741133465821,-500.0,0.00046027,120]
[355427496,1741133465831,-1098.7,0.00046027,120]
[355427497,1741133465841,-500.0,0.00046027,120]
[355427498,1741133465851,-500.0,0.00046027,120]
[355427499,1741133465860,-500.0,0.00046027,120]
[355427500,1741133465870,-500.0,0.00046027,120]
[355427501,1741133465879,-500.0,0.00046027,120]
[355427502,1741133465889,-776.18,0.00046027,120]
[355427503,1741133465899,-1326.98,0.00046027,120]
[355427504,1741133465909,-500.0,0.00046027,120]
[355427505,1741133465918,-500.0,0.00046027,120]
[355427506,1741133465928,-500.0,0.00046027,120]
[355427507,1741133465938,-500.0,0.00046027,120]
[355427508,1741133465948,-500.0,0.00046027,120]
[355427509,1741133465957,-500.0,0.00046027,120]
[355427510,1741133465967,-500.0,0.00046027,120]
[355427511,1741133465976,-500.0,0.00046027,120]
[355427512,1741133465986,-500.0,0.00046027,120]
[355427513,1741133465996,-500.0,0.00046027,120]
[355427514,1741133466005,-519.80551398,0.00046027,120]
[355427515,1741133466015,-741.53,0.00046027,120]
[355427516,1741133466025,-500.0,0.00046027,120]
[355427517,1741133466034,-500.0,0.00046027,15]
[355427518,1741133466044,-500.0,0.00046027,120]
[355427519,1741133466054,-725.38,0.00046027,120]
[355427520,1741133466063,-530.65,0.00046027,120]
[355427521,1741133466072,-540.75,0.00046027,120]
[355427522,1741133466082,-500.0,0.00046027,120]
[355427523,1741133466091,-500.0,0.00046027,120]
[355427524,1741133466101,-500.0,0.00046027,120]
[355427525,1741133466111,-775.04,0.00046027,120]
[355427526,1741133466120,-500.0,0.00046027,120]
[355427527,1741133466130,-500.0,0.00046027,120]
[355427528,1741133466140,-500.0,0.00046027,120]
[355427529,1741133466150,-500.0,0.00046027,120]
[355427530,1741133466160,-500.0,0.00046027,120]
[355427531,1741133466169,-1535.64,0.00046027,120]
[355427532,1741133466179,-500.0,0.00046027,120]
[355427533,1741133466188,-500.0,0.00046027,120]
[355427534,1741133466198,-500.0,0.00046027,120]
[355427535,1741133466207,-664.73,0.00046027,120]
[355427536,1741133466216,-1570.88,0.00046027,120]
[355427537,1741133466226,-500.0,0.00046027,120]
[355427538,1741133466237,-500.0,0.00046027,120]
[355427539,1741133466247,-1000.0,0.00046027,88]
[355427540,1741133466257,-2061.69,0.00046027,120]
[355427541,1741133466275,-525.17,0.00046027,120]
[355427542,1741133466285,-564.98506653,0.00046027,120]
[355427543,1741133466295,-500.0,0.00046027,120]
[355427544,1741133466304,-500.0,0.00046027,120]
[355427545,1741133466314,-500.0,0.00046027,120]
[355427546,1741133466325,-500.0,0.00046027,120]
[355427547,1741133466334,-500.0,0.00046027,120]
[355427548,1741133466345,-500.0,0.00046027,120]
[355427549,1741133466355,-1148.19,0.00046027,120]
[355427550,1741133466365,-525.27,0.00046027,120]
[355427551,1741133466376,-500.0,0.00046027,120]
[355427552,1741133466385,-500.0,0.00046027,120]
[355427553,1741133466396,-870.17,0.00046027,120]
[355427554,1741133466406,-500.0,0.00046027,120]
[355427555,1741133466415,-500.0,0.00046027,120]
[355427556,1741133466426,-500.0,0.00046027,120]
[355427557,1741133466436,-500.0,0.00046027,120]
[355427558,1741133466446,-500.0,0.00046027,120]
[355427559,1741133466456,-511.65,0.00046027,120]
[355427560,1741133466468,-500.0,0.00046027,120]
[355427561,1741133466478,-500.0,0.00046027,120]
[355427562,1741133466488,-500.0,0.00046027,120]
[355427563,1741133466497,-500.0,0.00046027,120]
[355427564,1741133466507,-587.65,0.00046027,120]
[355427565,1741133466517,-200.0,0.00046027,7]
[355427566,1741133466527,-500.0,0.00046027,120]
[355427567,1741133466537,-500.0,0.00046027,120]
[355427568,1741133466547,-500.0,0.00046027,120]
[355427569,1741133466556,-500.0,0.00046027,120]
[355427570,1741133466566,-689.78,0.00046027,120]
[355427571,1741133466576,-421.31949701,0.00046027,120]
[355427572,1741133466587,-500.0,0.00046027,120]
[355427573,1741133466596,-500.0,0.00046027,120]
[355427574,1741133466607,-500.0,0.00046027,120]
[355427575,1741133466617,-500.0,0.00046027,120]
[355427576,1741133466628,-549.56,0.00046027,120]
[355427577,1741133466638,-500.0,0.00046027,120]
[355427578,1741133466651,-712.67,0.00046027,120]
[355427579,1741133466662,-500.0,0.00046027,120]
[355427580,1741133466672,-500.0,0.00046027,120]
[355427581,1741133466683,-500.0,0.00046027,120]
[355427582,1741133466694,-500.0,0.00046027,120]
[355427583,1741133466703,-538.62,0.00046027,120]
[355427584,1741133466713,-500.0,0.00046027,120]
[355427585,1741133466724,-543.13,0.00046027,120]
[355427586,1741133466734,-500.0,0.00046027,120]
[355427587,1741133466746,-500.0,0.00046027,120]
[355427588,1741133466756,-1830.97,0.00046027,120]
[355427589,1741133466765,-500.0,0.00046027,120]
[355427590,1741133466775,-654.1,0.00046027,120]
[355427591,1741133466785,-500.0,0.00046027,120]
[355427592,1741133466795,-500.0,0.00046027,120]
[355427593,1741133466804,-500.0,0.00046027,120]
[355427594,1741133466815,-500.0,0.00046027,120]
[355427595,1741133466825,-1041.54,0.00046027,120]
[355427596,1741133466835,-1000.0,0.00046027,120]
[355427597,1741133466845,-500.0,0.00046027,120]
[355427598,1741133466854,-500.0,0.00046027,120]
[355427599,1741133466864,-500.0,0.00046027,120]
[355427600,1741133466874,-500.0,0.00046027,120]
[355427601,1741133466883,-500.0,0.00046027,120]
[355427602,1741133466893,-500.0,0.00046027,120]
[355427603,1741133466907,-500.0,0.00046027,120]
[355427604,1741133466916,-533.91,0.00046027,120]
[355427605,1741133466925,-500.0,0.00046027,120]
[355427606,1741133466934,-500.0,0.00046027,120]
[355427607,1741133466941,-500.0,0.00046027,120]
[355427608,1741133466949,-755.35,0.00046027,120]
[355427609,1741133466959,-504.32125931,0.00046027,120]
[355427610,1741133466969,-500.0,0.00046027,120]
[355427611,1741133466979,-500.0,0.00046027,120]
[355427612,1741133466989,-500.0,0.00046027,120]
[355427613,1741133466999,-500.0,0.00046027,120]
[355427614,1741133467009,-12256.92,0.00046027,6]
[355427615,1741133467019,-500.0,0.00046027,120]
[355427616,1741133467029,-1129.88,0.00046027,120]
[355427617,1741133467039,-1559.29,0.00046027,120]
[355427618,1741133467050,-500.0,0.00046027,120]
[355427619,1741133467060,-695.91,0.00046027,120]
[355427620,1741133467070,-500.0,0.00046027,120]
[355427621,1741133467080,-510.58,0.00046027,120]
[355427622,1741133467090,-1796.05,0.00046027,120]
[355427623,1741133467100,-500.0,0.00046027,120]
[355427624,1741133467111,-500.0,0.00046027,120]
[355427625,1741133467122,-500.0,0.00046027,120]
[355427626,1741133467132,-629.55,0.00046027,120]
[355427627,1741133467244,-500.0,0.00046027,120]
[355427628,1741133467258,-1558.29,0.00046027,120]
[355427629,1741133467269,-2648.3,0.00046027,120]
[355427630,1741133467283,-500.0,0.00046027,120]
[355427631,1741133467294,-737.55,0.00046027,120]
[355427632,1741133467305,-500.0,0.00046027,120]
[355427633,1741133467316,-5295.05,0.00046027,120]
[355427634,1741133467328,-500.0,0.00046027,120]
[355427635,1741133467339,-500.0,0.00046027,120]
[355427636,1741133467351,-708.5,0.00046027,120]
[355427637,1741133467362,-500.0,0.00046027,120]
[355427638,1741133467372,-5858.7,0.00046027,120]
[355427639,1741133467382,-500.0,0.00046027,120]
[355427640,1741133467392,-500.0,0.00046027,120]
[355427641,1741133467405,-501.72,0.00046027,120]
[355427642,1741133467415,-500.0,0.00046027,120]
[355427643,1741133467425,-500.0,0.00046027,120]
[355427644,1741133467436,-8858.06,0.00046027,120]
[355427645,1741133467446,-1853.51,0.00046027,120]
[355427646,1741133467455,-615.81,0.00046027,120]
[355427647,1741133467464,-500.0,0.00046027,120]
[355427648,1741133467474,-500.0,0.00046027,120]
[355427649,1741133467484,-500.0,0.00046027,14]
[355427650,1741133467494,-500.0,0.00046027,120]
[355427651,1741133467503,-512.2,0.00046027,120]
[355427652,1741133467512,-693.53,0.00046027,120]
[355427653,1741133467522,-500.0,0.00046027,120]
[355427654,1741133467531,-500.0,0.00046027,120]
[355427655,1741133467541,-1193.07,0.00046027,120]
[355427656,1741133467550,-500.0,0.00046027,120]
[355427657,1741133467560,-5072.72,0.00046027,120]
[355427658,1741133467571,-500.0,0.00046027,120]
[355427659,1741133467580,-500.0,0.00046027,120]
[355427660,1741133467589,-500.0,0.00046027,120]
[355427661,1741133467599,-763.22,0.00046027,120]
[355427662,1741133467609,-618.55,0.00046027,120]
[355427663,1741133467619,-500.0,0.00046027,120]
[355427664,1741133467628,-500.0,0.00046027,120]
[355427665,1741133467640,-500.0,0.00046027,120]
[355427666,1741133467653,-2521.63,0.00046027,120]
[355427667,1741133467663,-500.0,0.00046027,120]
[355427668,1741133467673,-500.0,0.00046027,120]
[355427669,1741133467684,-636.33,0.00046027,120]
[355427670,1741133467694,-645.28,0.00046027,120]
[355427671,1741133467703,-500.0,0.00046027,120]
[355427672,1741133467713,-500.0,0.00046027,21]
[355427673,1741133467725,-500.0,0.00046027,120]
[355427674,1741133467735,-500.0,0.00046027,120]
[355427675,1741133467745,-377.61531414,0.00046027,120]
[355427676,1741133467754,-941.03,0.00046027,120]
[355427677,1741133467765,-500.0,0.00046027,120]
[355427678,1741133467774,-500.0,0.00046027,120]
[355427679,1741133467783,-500.0,0.00046027,120]
[355427680,1741133467792,-603.44,0.00046027,120]
[355427681,1741133467802,-658.32,0.00046027,120]
[355427682,1741133467812,-500.0,0.00046027,120]
[355427683,1741133467821,-500.0,0.00046027,120]
[355427684,1741133467831,-511.88,0.00046027,120]
[355427685,1741133467841,-500.0,0.00046027,120]
[355427686,1741133467851,-172.34410959,0.00046027,120]
[355427687,1741133467861,-500.0,0.00046027,120]
[355427688,1741133467870,-3185.65,0.00046027,120]
[355427689,1741133467879,-548.67,0.00046027,120]
[355427690,1741133467888,-12165.72,0.00046027,120]
[355427691,1741133467899,-510.9371502,0.00046027,120]
[355427692,1741133467910,-735.27,0.00046027,30]
[355427693,1741133467919,-500.0,0.00046027,120]
[355427694,1741133467928,-500.0,0.00046027,120]
[355427695,1741133467937,-872.85,0.00046027,120]
[355427696,1741133467947,-500.0,0.00046027,120]
[355427697,1741133467956,-1022.42,0.00046027,120]
[355427698,1741133467967,-1287.12,0.00046027,120]
[355427699,1741133467977,-3231.4,0.00046027,120]
[355427700,1741133467987,-500.0,0.00046027,120]
[355427701,1741133467997,-868.35,0.00046027,120]
[355427702,1741133468007,-500.0,0.00046027,120]
[355427703,1741133468018,-234.27279063,0.00046027,120]
[355427704,1741133468028,-1150.12,0.00046027,120]
[355427705,1741133468038,-1892.28,0.00046027,120]
[355427706,1741133468047,-500.0,0.00046027,120]
[355427707,1741133468057,-500.0,0.00046027,120]
[355427708,1741133468066,-500.0,0.00046027,120]
[355427709,1741133468076,-500.0,0.00046027,120]
[355427710,1741133468085,-2282.9,0.00046027,120]
[355427711,1741133468095,-500.0,0.00046027,120]
[355427712,1741133468106,-500.0,0.00046027,120]
[355427713,1741133468116,-172188.63,0.00046027,7]
[355427714,1741133468126,-500.0,0.00046027,120]
[355427715,1741133468136,-1934.89,0.00046027,120]
[355427716,1741133468146,-500.0,0.00046027,120]
[355427717,1741133468157,-500.0,0.00046027,120]
[355427718,1741133468166,-500.0,0.00046027,120]
[355427719,1741133468176,-1151.74,0.00046027,120]
[355427720,1741133468186,-15623.84,0.00046027,120]
[355427721,1741133468195,-500.0,0.00046027,120]
[355427722,1741133468205,-500.0,0.00046027,120]
[355427723,1741133468214,-500.0,0.00046027,120]
[355427724,1741133468223,-657.15,0.00046027,120]
[355427725,1741133468233,-500.0,0.00046027,30]
[355427726,1741133468242,-500.0,0.00046027,120]
[355427727,1741133468251,-3052.65,0.00046027,120]
[355427728,1741133468261,-500.0,0.00046027,120]
[355427729,1741133468271,-561.63,0.00046027,120]
[355427730,1741133468284,-500.0,0.00046027,120]
[355427731,1741133468294,-2298.08,0.00046027,120]
[355427732,1741133468303,-1531.62,0.00046027,120]
[355427733,1741133468313,-559.78,0.00046027,120]
[355427734,1741133468323,-500.0,0.00046027,120]
[355427735,1741133468333,-1184.43,0.00046027,120]
[355427736,1741133468342,-1584.63,0.00046027,120]
[355427737,1741133468352,-1147.45,0.00046027,120]
[355427738,1741133468362,-500.0,0.00046027,120]
[355427739,1741133468371,-1415.06,0.00046027,120]
[355427740,1741133468381,-500.0,0.00046027,120]
[355427741,1741133468391,-500.0,0.00046027,120]
[355427742,1741133468401,-500.0,0.00046027,120]
[355427743,1741133468410,-500.0,0.00046027,120]
[355427744,1741133468423,-500.0,0.00046027,120]
[355427745,1741133468433,-675.49,0.00046027,120]
[355427746,1741133468443,-1618.55,0.00046027,120]
[355427747,1741133468453,-604.16,0.00046027,120]
[355427748,1741133468462,-500.0,0.00046027,120]
[355427749,1741133468472,-5869.21,0.00046027,30]
[355427750,1741133468482,-500.0,0.00046027,120]
[355427751,1741133468492,-3063.1,0.00046027,120]
[355427752,1741133468501,-500.0,0.00046027,120]
[355427753,1741133468510,-500.0,0.00046027,120]
[355427754,1741133468523,-500.0,0.00046027,120]
[355427755,1741133468532,-500.0,0.00046027,120]
[355427756,1741133468542,-500.0,0.00046027,120]
[355427757,1741133468552,-500.0,0.00046027,120]
[355427758,1741133468562,-500.0,0.00046027,120]
[355427759,1741133468572,-500.0,0.00046027,120]
[355427760,1741133468581,-502.65,0.00046027,120]
[355427761,1741133468592,-649.82,0.00046027,120]
[355427762,1741133468602,-291.64,0.00046027,2]
[355427763,1741133468611,-10569.38,0.00046027,120]
[355427764,1741133468621,-541.48,0.00046027,120]
[355427765,1741133468631,-500.0,0.00046027,120]
[355427766,1741133468641,-6154.27,0.00046027,120]
[355427767,1741133468651,-605.24,0.00046027,120]
[355427768,1741133468661,-500.0,0.00046027,120]
[355427769,1741133468670,-500.0,0.00046027,120]
[355427770,1741133468681,-500.0,0.00046027,120]
[355427771,1741133468691,-500.0,0.00046027,120]
[355427772,1741133468701,-500.0,0.00046027,120]
[355427773,1741133468712,-2223.77,0.00046027,120]
[355427774,1741133468722,-784.46,0.00046027,120]
[355427775,1741133468732,-500.0,0.00046027,120]
[355427776,1741133468742,-500.0,0.00046027,120]
[355427777,1741133468751,-842.34,0.00046027,120]
[355427778,1741133468859,-500.0,0.00046027,120]
[355427779,1741133468869,-534.26,0.00046027,120]
[355427780,1741133468878,-500.0,0.00046027,120]
[355427781,1741133468888,-500.0,0.00046027,120]
[355427782,1741133468898,-562.5,0.00046027,120]
[355427783,1741133468910,-5381.45,0.00046027,120]
[355427784,1741133468920,-500.0,0.00046027,120]
[355427785,1741133468930,-509.10206878,0.00046027,120]
[355427786,1741133468940,-8421.25,0.00046027,120]
[355427787,1741133468951,-552.70976703,0.00046027,120]
[355427788,1741133468960,-1416.82,0.00046027,120]
[355427789,1741133468969,-500.0,0.00046027,120]
[355427790,1741133468979,-500.0,0.00046027,120]
[355427791,1741133468988,-5881.15,0.00046027,120]
[355427792,1741133468998,-500.0,0.00046027,120]